bitfinex-derivatives/quotes_SOLF0:USTF0_20220101
["timestamp","ask_amount","ask_price","bid_price","bid_amount"]
[1641050403364,3.0,172.99,172.89,27.66479]
[1641050403567,30.66479,173.0,172.89,27.66479]
[1641050404168,27.66479,173.0,172.89,27.66479]
[1641050404367,3.0,172.95,172.89,27.66479]
[1641050404567,3.0,172.95,172.89,109.70065987]
[1641050405168,3.0,172.95,172.92,49.22492928]
[1641050405467,3.0,172.99,172.92,49.22492928]
[1641050405868,3.0,172.99,172.89,27.66479]
[1641050405869,3.0,172.99,172.93,49.22492928]
[1641050407573,3.0,172.99,172.94,49.22492928]
[1641050408176,3.0,172.99,172.93,49.22492928]
[1641050409080,3.0,172.98,172.95,49.22492928]
[1641050409378,3.0,172.96,172.95,49.22492928]
[1641050409579,24.09292324,173.0,172.93,49.22492928]
[1641050409779,17.52112216,173.0,172.95,16.70883934]
[1641050410077,3.2858568,172.99,172.95,16.70883934]
[1641050410578,3.2858568,172.99,172.94,16.70883934]
[1641050410779,0.26945957,173.0,172.94,16.70883934]
[1641050411078,33.44413462,173.03,172.9,3.0]
[1641050411280,33.44413462,173.03,172.93,4.00884691]
[1641050411782,33.44413462,173.03,172.94,27.66479]
[1641050411979,33.44413462,173.03,172.94,28.32192312]
[1641050412279,3.28566559,173.02,172.94,28.32192312]
[1641050412680,3.28566559,173.02,172.95,0.65713312]
[1641050412880,31.9963,173.04,173.03,7.4282971]
[1641050413079,27.66479,173.05,172.95,0.65713312]
[1641050413980,5.77934462,173.04,172.95,0.65713312]
[1641050414181,5.77934462,173.04,172.99,4.0227787]
[1641050414382,27.66479,173.05,172.99,4.0227787]
[1641050414582,3.28574787,173.03,172.98,4.0227787]
[1641050414980,3.28574787,173.04,172.99,0.65713312]
[1641050415882,3.28574787,173.04,172.99,4.67991182]
[1641050416282,3.28574787,173.04,173.0,0.65713312]
[1641050418083,3.28574787,173.04,172.95,0.65713312]
[1641050422890,7.30830029,173.04,173.01,4.0227787]
[1641050423290,7.30830029,173.04,173.02,0.65713312]
[1641050423491,3.28574787,173.03,173.02,0.65713312]
[1641050425591,3.28574787,173.03,172.98,27.66479]
[1641050425791,4.0,173.02,172.91,32.18375463]
[1641050425990,27.66479,172.97,172.91,32.18375463]
[1641050426191,3.28574787,173.03,172.91,32.18375463]
[1641050426391,5.78017976,173.02,172.89,27.66479]
[1641050426890,3.28605538,173.01,172.89,27.66479]
[1641050427492,32.77625538,173.01,172.9,7.54402877]
[1641050428093,27.66479,173.0,172.9,7.54402877]
[1641050428293,35.33284538,173.0,172.9,7.54402877]
[1641050428693,3.28605538,172.99,172.9,7.54402877]
[1641050432698,3.28605538,172.99,172.89,27.66479]
[1641050434400,2.29470292,172.98,172.9,1.80479554]
[1641050435102,3.28605538,172.97,172.9,1.80479554]
[1641050436002,2.29470292,172.96,172.9,1.80479554]
[1641050437103,2.29470292,172.99,172.9,1.80479554]
[1641050437505,3.28624471,172.98,172.9,1.80479554]
[1641050438706,2.29470292,172.97,172.9,1.80479554]
[1641050439908,11.14730157,172.99,172.9,1.80479554]
[1641050440309,2.29470292,172.99,172.9,1.80479554]
[1641050440512,3.28620333,172.98,172.9,1.80479554]
[1641050440809,3.28620333,172.98,172.91,0.65724098]
[1641050441212,2.29470292,172.97,172.91,0.65724098]
[1641050442412,2.29470292,172.97,172.9,0.65724098]
[1641050442614,11.1647114,172.99,172.92,1.80836142]
[1641050443313,11.1647114,172.99,172.91,1.80836142]
[1641050443612,3.28629713,172.98,172.93,0.65724098]
[1641050444013,3.28629713,172.98,172.92,0.65724098]
[1641050444714,2.29470292,172.97,172.92,0.65724098]
[1641050445417,2.29470292,172.97,172.9,0.65724098]
[1641050445915,11.1647114,172.99,172.91,1.80756496]
[1641050446116,11.1647114,172.99,172.93,27.66479]
[1641050446615,11.1647114,172.99,172.94,0.65724098]
[1641050446816,2.29470292,173.01,172.94,2.46480594]
[1641050447216,2.29470292,173.01,172.94,5.46480594]
[1641050447417,2.29470292,173.01,172.95,3.0]
[1641050447617,43.34846603,173.03,172.95,4.80756496]
[1641050447817,11.1647114,173.03,172.95,5.46480594]
[1641050448219,11.1647114,173.03,172.96,0.65724098]
[1641050448416,43.6661114,173.04,172.96,2.46480594]
[1641050449118,11.1647114,173.04,172.97,0.65724098]
[1641050449519,11.1647114,173.03,172.97,2.46480594]
[1641050450022,11.1647114,173.04,172.98,0.65724098]
[1641050450724,11.1647114,173.04,172.97,0.65724098]
[1641050450923,11.1647114,173.04,172.99,0.65724098]
[1641050451522,11.1647114,173.04,172.97,0.65724098]
[1641050452424,11.1647114,173.04,172.95,0.65724098]
[1641050453327,32.18375463,173.03,172.95,0.65724098]
[1641050453725,32.18375463,173.03,172.96,3.0]
[1641050454328,32.18375463,173.03,172.97,0.65724098]
[1641050456431,12.31415522,173.0,172.97,0.65724098]
[1641050458833,12.31415522,172.99,172.97,0.65724098]
[1641050463836,12.31415522,172.99,172.94,0.65724098]
[1641050464436,12.31415522,172.99,172.95,1.80847869]
[1641050464836,12.31415522,172.99,172.96,0.65724098]
[1641050465038,12.31415522,172.99,172.97,3.0]
[1641050465240,12.31415522,172.99,172.96,0.65724098]
[1641050465437,12.31415522,172.99,172.98,0.65724098]
[1641050465938,12.31415522,173.03,172.98,0.65724098]
[1641050466138,12.31415522,173.03,172.96,0.65724098]
[1641050466540,12.31415522,173.03,172.94,0.65724098]
[1641050466738,46.80935814,173.03,172.94,0.65724098]
[1641050467339,2.29470292,173.02,172.94,0.65724098]
[1641050468740,2.29470292,173.02,172.97,27.66479]
[1641050469140,2.29470292,173.02,172.98,0.65724098]
[1641050475054,12.31415522,172.99,172.98,0.65724098]
[1641050475754,11.16055841,173.02,172.98,0.65724098]
[1641050476555,12.31959795,172.99,172.98,0.65724098]
[1641050477157,11.16055841,173.02,172.98,0.65724098]
[1641050477858,12.3195716,172.99,172.98,0.65724098]
[1641050478356,11.16055841,173.02,172.98,0.65724098]
[1641050478959,12.31960942,172.99,172.98,0.65724098]
[1641050479559,11.16055841,173.02,172.98,0.65724098]
[1641050481064,12.31961874,172.99,172.98,0.65724098]
[1641050481563,43.34431304,173.02,172.98,0.65724098]
[1641050483066,12.31992772,172.99,172.98,0.65724098]
[1641050484365,11.16055841,173.02,172.98,0.65724098]
[1641050484867,12.31707103,172.99,172.98,0.65724098]
[1641050485769,11.16055841,173.02,172.98,0.65724098]
[1641050486372,12.31707542,172.99,172.98,0.65724098]
[1641050486871,11.16055841,173.02,172.98,0.65724098]
[1641050487674,12.3168803,173.0,172.98,0.65724098]
[1641050488975,12.3168803,172.99,172.98,0.65724098]
[1641050489575,11.16055841,173.02,172.98,0.65724098]
[1641050490175,12.31688989,173.0,172.98,0.65724098]
[1641050495481,12.31688989,172.99,172.98,0.65724098]
[1641050496079,11.16055841,173.02,172.98,0.65724098]
[1641050496379,12.31928243,173.0,172.98,0.65724098]
[1641050499086,11.16055841,173.02,172.99,3.0]
[1641050499284,11.16055841,173.02,172.98,0.65724098]
[1641050499485,2.29470292,173.02,173.0,3.0]
[1641050499697,32.18375463,173.06,173.0,3.65724098]
[1641050500186,32.18375463,173.06,173.01,0.65724098]
[1641050500488,8.56739932,173.07,173.01,0.65724098]
[1641050500687,8.56739932,173.07,173.01,3.65724098]
[1641050502086,8.56739932,173.07,173.02,0.65724098]
[1641050502486,4.09048118,173.03,173.01,0.65724098]
[1641050503087,30.1538,173.08,173.01,0.65724098]
[1641050503888,4.0905286,173.02,173.01,0.65724098]
[1641050504387,8.53789556,173.07,173.01,0.65724098]
[1641050504588,8.53789556,173.07,173.0,0.65724098]
[1641050505689,8.53789556,173.07,172.99,0.65724098]
[1641050506390,4.09090511,173.0,172.99,0.65724098]
[1641050506989,40.72165019,173.07,172.99,0.65724098]
[1641050507194,40.72165019,173.07,172.99,32.64244098]
[1641050507489,3.28500425,173.06,172.99,32.64244098]
[1641050507690,7.87500425,173.06,173.02,3.0]
[1641050507890,7.87500425,173.06,173.0,0.65724098]
[1641050508290,4.59,173.06,173.0,0.65724098]
[1641050509292,40.72165019,173.07,173.0,0.65724098]
[1641050509491,4.09058888,173.02,173.0,0.65724098]
[1641050510193,8.53789556,173.07,173.0,0.65724098]
[1641050510593,8.53789556,173.07,172.99,30.76654098]
[1641050510993,8.53789556,173.07,173.0,0.65724098]
[1641050511197,4.09070974,173.02,173.0,0.65724098]
[1641050511996,4.09070974,173.02,172.99,0.65724098]
[1641050512195,6.512,173.06,172.99,0.65724098]
[1641050512795,4.09060695,173.02,172.99,0.65724098]
[1641050513498,6.512,173.06,172.99,0.65724098]
[1641050514200,6.512,173.06,172.99,4.76293341]
[1641050514800,2.1865449,173.05,173.0,0.65724098]
[1641050518003,34.37029953,173.05,173.0,0.65724098]
[1641050518403,34.37029953,173.05,172.98,0.65724098]
[1641050518804,32.18375463,173.04,172.98,0.65724098]
[1641050519504,32.18375463,173.04,172.97,4.10569243]
[1641050519705,42.90819509,173.04,172.96,4.10569243]
[1641050519906,5.78051389,173.01,172.96,4.10569243]
[1641050520407,29.9812,173.03,172.96,4.10569243]
[1641050520610,4.08414942,172.97,172.89,4.10569243]
[1641050520808,4.08414942,172.97,172.92,30.66479]
[1641050521207,4.08414942,172.98,172.92,30.66479]
[1641050522108,4.08414942,173.0,172.92,34.77048243]
[1641050522609,4.08414942,172.99,172.92,30.66479]
[1641050523211,4.08414942,172.98,172.92,30.66479]
[1641050523711,29.8513349,173.02,172.92,30.66479]
[1641050523912,4.08374768,172.99,172.92,30.66479]
[1641050524512,4.08374768,172.99,172.92,27.66479]
[1641050525113,4.08374768,172.99,172.96,27.66479]
[1641050525314,4.08374768,172.99,172.97,3.0]
[1641050525614,6.27029258,173.01,172.97,3.0]
[1641050525815,4.08374768,173.01,172.97,3.0]
[1641050527116,2.1865449,173.02,172.97,3.0]
[1641050527516,4.08304256,173.02,172.97,3.0]
[1641050528217,4.08304256,173.01,172.97,3.0]
[1641050528717,2.17463916,173.02,172.96,27.66479]
[1641050529518,4.08310998,173.01,172.96,30.66479]
[1641050530020,2.17463916,173.02,172.96,30.66479]
[1641050530423,2.17463916,173.02,172.96,27.66479]
[1641050530621,4.08310656,173.01,172.96,27.66479]
[1641050531321,2.17463916,173.02,172.96,27.66479]
[1641050532021,4.08316166,173.01,172.96,27.66479]
[1641050532624,2.17463916,173.02,172.96,27.66479]
[1641050532822,12.24932993,173.01,172.97,6.02495162]
[1641050533223,12.24932993,173.01,172.97,4.10569243]
[1641050533426,12.24932993,173.0,172.96,31.77048243]
[1641050534027,12.31904662,173.01,172.97,6.02495167]
[1641050536231,12.31904662,173.01,172.98,0.65703375]
[1641050537332,12.31904662,173.0,172.98,0.65703375]
[1641050537835,12.31904662,173.0,172.95,39.25889243]
[1641050537836,12.31904662,173.0,172.96,0.65703375]
[1641050544643,12.31904662,173.0,172.95,0.65703375]
[1641050546045,12.31904662,173.0,172.95,3.65703375]
[1641050546244,12.31904662,173.0,172.96,3.0]
[1641050546545,12.31904662,173.0,172.96,3.65703375]
[1641050546945,12.31904662,173.0,172.97,0.65703375]
[1641050547547,12.31904662,173.01,172.97,0.65703375]
[1641050550447,12.31904662,173.0,172.97,0.65703375]
[1641050550848,10.74444607,173.02,172.97,0.65703375]
[1641050551050,10.74444607,173.02,173.0,3.0]
[1641050551450,10.74444607,173.02,173.01,0.65703375]
[1641050551648,12.31814205,173.02,173.01,0.65703375]
[1641050551848,12.31814205,173.02,173.0,0.65703375]
[1641050552649,10.74444607,173.05,173.0,3.65703375]
[1641050552852,12.31735392,173.03,173.0,3.65703375]
[1641050553249,12.31735392,173.03,173.01,0.65703375]
[1641050553449,12.31721765,173.04,173.01,0.65703375]
[1641050555251,10.74444607,173.05,173.01,0.65703375]
[1641050555252,12.31731426,173.03,173.01,0.65703375]
[1641050555852,10.74444607,173.04,173.01,0.65703375]
[1641050556051,10.74444607,173.04,173.0,0.65703375]
[1641050556552,12.31765174,173.03,173.0,0.65703375]
[1641050556752,12.31765174,173.03,173.0,3.65703375]
[1641050556952,12.31765174,173.03,173.0,0.65703375]
[1641050557352,12.31765174,173.03,173.0,3.65703375]
[1641050557552,12.31765174,173.03,173.0,0.65703375]
[1641050557952,12.31765174,173.03,173.01,0.65703375]
[1641050558353,4.09172943,173.03,173.0,0.65703375]
[1641050558952,4.0917912,173.02,173.0,0.65703375]
[1641050559154,4.0917912,173.02,173.0,3.65703375]
[1641050559653,4.0917912,173.02,173.01,0.65703375]
[1641050559854,34.59023916,173.05,173.01,0.65703375]
[1641050560255,34.59023916,173.05,173.0,0.65703375]
[1641050560656,4.09166517,173.03,173.0,0.65703375]
[1641050561054,32.4156,173.05,173.0,0.65703375]
[1641050561855,4.0916778,173.03,173.0,0.65703375]
[1641050562055,4.0916778,173.03,173.01,3.0]
[1641050562555,32.4156,173.05,173.01,3.0]
[1641050562755,27.66479,173.06,173.02,3.0]
[1641050562957,27.66479,173.06,173.02,3.65703375]
[1641050563158,4.09168402,173.03,173.02,3.65703375]
[1641050563558,4.09168402,173.03,173.02,3.0]
[1641050563760,4.09146625,173.04,173.02,3.0]
[1641050564161,4.09146625,173.04,172.99,31.77048243]
[1641050564460,12.31765174,173.08,172.99,31.77048243]
[1641050565364,4.09144604,173.04,172.99,31.77048243]
[1641050565860,12.31765174,173.08,172.99,31.77048243]
[1641050566663,4.09143994,173.04,172.99,31.77048243]
[1641050567363,5.669,173.04,173.03,3.0]
[1641050568266,7.84754897,173.04,173.03,3.0]
[1641050568669,5.669,173.04,173.03,3.0]
[1641050569668,7.85491975,173.04,173.03,3.0]
[1641050570072,5.669,173.04,173.03,3.0]
[1641050570670,7.85493063,173.04,173.03,3.0]
[1641050571269,5.669,173.04,173.03,3.0]
[1641050571469,12.31591897,173.05,173.03,3.0]
[1641050572269,42.90679671,173.09,173.03,3.0]
[1641050572471,42.90679671,173.09,173.04,3.0]
[1641050573071,12.31605202,173.05,173.04,3.0]
[1641050573671,42.90679671,173.09,173.04,3.0]
[1641050574373,12.3159578,173.05,173.01,4.10569243]
[1641050574774,12.31534937,173.06,173.04,3.0]
[1641050575175,12.31534937,173.06,173.02,4.10569243]
[1641050575375,10.72304208,173.09,173.04,3.0]
[1641050575775,10.72304208,173.09,173.02,4.10569243]
[1641050576378,12.31544474,173.06,173.03,3.0]
[1641050576879,12.31544474,173.06,173.04,3.0]
[1641050578181,14.45604289,173.09,173.04,3.0]
[1641050578679,14.45604289,173.09,173.05,0.65682493]
[1641050580681,14.45604289,173.09,173.03,0.65682493]
[1641050581385,14.45604289,173.09,173.03,2.493e-05]
[1641050581386,9.06254017,173.08,173.03,2.493e-05]
[1641050581583,12.27009801,173.07,173.02,27.66479]
[1641050582384,12.27009801,173.05,173.02,27.66479]
[1641050587793,12.27009801,173.03,173.02,27.66479]
[1641050588293,12.27009801,173.03,173.02,28.32175099]
[1641050588495,10.72106595,173.05,173.02,28.32175099]
[1641050588996,12.3177173,173.03,173.02,28.32175099]
[1641050589196,12.3177173,173.03,173.02,27.66479]
[1641050590300,10.72106595,173.05,173.02,27.66479]
[1641050591202,12.31756001,173.03,173.02,27.66479]
[1641050592301,10.72106595,173.05,173.02,27.66479]
[1641050592504,12.3170466,173.04,173.02,27.66479]
[1641050592703,12.3170466,173.04,173.0,4.10569243]
[1641050593603,12.3170466,173.03,173.0,3.0]
[1641050593803,12.3170466,173.03,173.01,3.0]
[1641050594403,12.3170466,173.03,173.0,4.10569243]
[1641050594404,12.3170466,173.04,173.0,7.10569243]
[1641050594803,10.72106595,173.05,173.0,3.0]
[1641050594804,12.3170466,173.03,173.0,3.0]
[1641050595205,12.3170466,173.03,172.99,31.77048243]
[1641050595405,12.3170466,173.03,173.0,3.0]
[1641050595805,12.3170466,173.03,172.99,31.77048243]
[1641050596005,10.72106595,173.05,172.99,31.77048243]
[1641050596006,10.72106595,173.05,173.0,3.0]
[1641050596406,10.72106595,173.05,172.99,31.77048243]
[1641050596605,10.72106595,173.05,173.02,3.0]
[1641050596806,12.31724918,173.03,173.02,3.0]
[1641050597305,10.72106595,173.05,173.02,3.0]
[1641050597505,12.31650059,173.04,173.02,3.0]
[1641050598407,2.18594488,173.05,173.02,3.0]
[1641050598607,14.50225314,173.05,173.02,3.0]
[1641050599410,14.50225314,173.05,173.03,3.0]
[1641050599711,14.50225314,173.05,173.01,4.10569243]
[1641050599911,14.50225314,173.05,173.02,3.0]
[1641050600511,14.50225314,173.05,173.01,4.10569243]
[1641050600714,14.50225314,173.05,173.04,3.0]
[1641050601112,14.50225314,173.05,173.01,4.10569243]
[1641050601311,14.50225314,173.05,173.04,3.0]
[1641050601512,14.50225314,173.05,173.03,3.0]
[1641050601712,14.50225314,173.05,173.01,4.10569243]
[1641050602212,12.31630826,173.07,173.04,3.0]
[1641050602615,12.31630826,173.06,173.05,3.0]
[1641050602813,12.31630826,173.06,173.04,3.0]
[1641050603714,12.31630826,173.07,173.04,3.0]
[1641050604216,12.31630826,173.06,173.04,3.0]
[1641050604415,12.31630826,173.06,173.05,0.65683864]
[1641050606621,42.93473811,173.1,173.05,0.65683864]
[1641050607023,42.93473811,173.1,173.03,0.65683864]
[1641050607221,12.31516905,173.06,173.03,0.65683864]
[1641050608521,42.93473811,173.1,173.03,0.65683864]
[1641050609023,12.31518286,173.06,173.03,0.65683864]
[1641050609224,12.31518286,173.06,173.04,3.0]
[1641050609523,42.93473811,173.1,173.04,3.0]
[1641050609723,42.93473811,173.1,173.05,0.65683864]
[1641050610233,12.31535357,173.06,173.05,0.65683864]
[1641050611127,42.93473811,173.1,173.05,0.65683864]
[1641050611325,32.18375463,173.09,173.05,0.65683864]
[1641050611526,35.46807001,173.09,173.06,3.0]
[1641050611726,35.46807001,173.09,173.03,0.65683864]
[1641050611926,2.18594488,173.08,173.07,0.65683864]
[1641050612326,42.93473811,173.1,173.05,0.65683864]
[1641050612826,42.93473811,173.1,173.07,3.0]
[1641050613326,42.93473811,173.1,173.08,0.65683864]
[1641050613527,10.75098348,173.1,173.08,0.65683864]
[1641050613730,10.75098348,173.1,173.04,3.0]
[1641050614227,42.93473811,173.1,173.05,0.65683864]
[1641050614728,42.93473811,173.1,173.06,3.0]
[1641050615028,42.93473811,173.1,173.07,3.0]
[1641050615229,10.75098348,173.1,173.07,0.65683864]
[1641050615631,10.75098348,173.1,173.06,0.65683864]
[1641050615831,10.75098348,173.1,173.09,3.0]
[1641050616029,2.18594488,173.1,173.09,3.0]
[1641050616629,2.18594488,173.1,173.09,3.65683864]
[1641050616829,27.66479,173.11,173.09,3.65683864]
[1641050617331,27.66479,173.11,173.1,0.65683864]
[1641050617533,27.66479,173.11,173.1,3.65683864]
[1641050617835,27.66479,173.11,173.1,3.0]
[1641050618332,27.66479,173.11,173.1,3.65683864]
[1641050623439,27.66479,173.11,173.1,0.65683864]
[1641050624240,36.22662727,173.11,173.09,0.65683864]
[1641050624639,36.22662727,173.11,173.07,0.65683864]
[1641050624838,27.66479,173.11,173.1,3.0]
[1641050625646,27.66479,173.11,173.1,3.65683864]
[1641050628350,27.66479,173.11,173.1,0.65683864]
[1641050628853,27.66479,173.11,173.05,0.65683864]
[1641050629254,31.74599558,173.11,173.05,0.65683864]
[1641050629754,27.66479,173.11,173.05,0.65683864]
[1641050630959,31.74591658,173.11,173.05,0.65683864]
[1641050631755,27.66479,173.11,173.05,0.65683864]
[1641050632655,31.74614912,173.11,173.05,0.65683864]
[1641050633354,4.08135912,173.1,173.05,0.65683864]
[1641050634054,27.66479,173.11,173.05,0.65683864]
[1641050634456,4.08141103,173.1,173.05,0.65683864]
[1641050635058,27.66479,173.11,173.05,0.65683864]
[1641050635256,31.74611734,173.11,173.05,0.65683864]
[1641050637759,31.74611734,173.11,173.08,3.0]
[1641050638161,31.74611734,173.11,173.09,0.65683864]
[1641050638362,2.18449591,173.1,173.09,0.65683864]
[1641050639264,39.90772295,173.11,173.09,0.65683864]
[1641050639471,39.90772295,173.11,173.08,0.65683864]
[1641050639866,2.18449701,173.1,173.08,3.65683864]
[1641050640366,2.18449701,173.1,173.09,0.65683864]
[1641050640566,27.66479,173.11,173.09,0.65683864]
[1641050640767,27.66479,173.11,173.08,3.65683864]
[1641050641066,2.1844918,173.1,173.08,3.65683864]
[1641050641369,2.1844918,173.1,173.09,0.65683864]
[1641050641569,27.66479,173.11,173.09,0.65683864]
[1641050642371,2.1844866,173.1,173.09,0.65683864]
[1641050642971,31.1176,173.14,173.09,0.65683864]
[1641050644072,12.31195804,173.11,173.09,0.65683864]
[1641050645376,10.74578911,173.13,173.09,0.65683864]
[1641050646379,12.29788164,173.11,173.09,0.65683864]
[1641050647785,12.29788164,173.12,173.09,0.65683864]
[1641050651489,12.29788164,173.12,173.07,0.65683864]
[1641050651688,12.29788164,173.12,173.08,3.0]
[1641050651896,12.29788164,173.11,173.08,3.0]
[1641050652290,12.29788164,173.11,173.09,0.65683864]
[1641050653792,12.29788164,173.11,173.06,0.65683864]
[1641050654193,4.09947906,173.08,173.06,4.76253107]
[1641050654793,4.09956514,173.07,173.06,0.65683864]
[1641050654994,4.09956514,173.07,173.05,31.77048243]
[1641050655494,12.29788164,173.11,173.06,6.02305489]
[1641050656196,4.09957146,173.07,173.05,31.77048243]
[1641050656795,12.29788164,173.11,173.05,31.77048243]
[1641050657697,4.10269158,173.07,173.06,6.0245347]
[1641050657896,4.10269158,173.07,173.06,15.3405347]
[1641050658297,12.29788164,173.11,173.06,11.23484227]
[1641050658898,4.10248038,173.08,173.07,6.02132265]
[1641050659502,12.30744115,173.12,173.07,6.02132265]
[1641050660101,12.30744115,173.11,173.07,6.02132265]
[1641050660502,12.30744115,173.11,173.1,3.0]
[1641050660701,10.74578911,173.13,173.1,3.0]
[1641050661104,10.74578911,173.13,173.09,3.0]
[1641050661306,12.30770729,173.11,173.09,3.0]
[1641050661704,12.30770729,173.11,173.07,31.76727038]
[1641050662006,10.74578911,173.13,173.07,31.76727038]
[1641050662807,12.30744972,173.12,173.07,31.76727038]
[1641050663707,12.30744972,173.12,173.08,6.02134995]
[1641050664310,14.49127889,173.13,173.08,6.02134995]
[1641050665309,14.49127889,173.13,173.12,3.0]
[1641050665509,14.49127889,173.13,173.09,31.5267]
[1641050666310,12.30678841,173.14,173.09,35.62918038]
[1641050669510,14.49127889,173.15,173.09,31.5267]
[1641050670513,14.49127889,173.15,173.1,0.6565675]
[1641050671615,14.49127889,173.15,173.1,3.6565675]
[1641050672416,14.49127889,173.15,173.11,3.0]
[1641050672616,12.30678841,173.14,173.11,3.6565675]
[1641050672919,12.30678841,173.14,173.12,0.6565675]
[1641050673717,14.49127889,173.15,173.12,0.6565675]
[1641050673917,14.49127889,173.15,173.11,0.6565675]
[1641050674218,12.30678841,173.14,173.11,0.6565675]
[1641050675122,14.49127889,173.15,173.11,0.6565675]
[1641050675320,14.49127889,173.15,173.1,0.6565675]
[1641050676224,4.0903274,173.12,173.1,0.6565675]
[1641050676621,4.0903274,173.12,173.11,3.0]
[1641050677024,2.18449048,173.15,173.11,3.0]
[1641050677222,2.18449048,173.15,173.11,3.6565675]
[1641050677423,4.0903304,173.12,173.11,0.6565675]
[1641050677622,4.0903304,173.12,173.08,34.8865]
[1641050678022,2.18449048,173.15,173.11,3.0]
[1641050678623,4.0902518,173.12,173.11,3.0]
[1641050679223,2.18449048,173.15,173.11,3.0]
[1641050679725,4.09026082,173.12,173.11,3.0]
[1641050681125,2.18449048,173.15,173.11,3.0]
[1641050681326,2.18449048,173.15,173.08,31.8865]
[1641050681524,2.18449048,173.15,173.09,27.66479]
[1641050681724,4.09038324,173.12,173.09,27.66479]
[1641050682226,4.09038635,173.11,173.09,27.66479]
[1641050682928,12.30678841,173.13,173.09,31.76727038]
[1641050683428,12.30678841,173.13,173.12,3.0]
[1641050683628,2.18449048,173.14,173.12,3.0]
[1641050684231,14.49465865,173.14,173.12,3.0]
[1641050688835,12.31016817,173.13,173.09,4.10248038]
[1641050689836,7.96066377,173.14,173.06,4.10248038]
[1641050690036,12.31174576,173.1,173.09,3.0]
[1641050690838,10.74393587,173.12,173.09,3.0]
[1641050691037,10.74393587,173.12,173.06,4.10248038]
[1641050691436,10.74393587,173.12,173.09,3.0]
[1641050691637,10.74393587,173.12,173.06,4.10248038]
[1641050692036,10.74393587,173.12,173.07,27.66479]
[1641050692239,12.31087584,173.11,173.07,31.76727038]
[1641050692837,12.31087584,173.11,173.08,0.65660669]
[1641050693137,12.31032209,173.12,173.08,6.67851442]
[1641050693738,12.31032209,173.12,173.09,0.65660669]
[1641050694138,10.74393587,173.15,173.09,0.65660669]
[1641050694538,5.77617329,173.14,173.08,4.10248038]
[1641050694739,32.18375463,173.13,173.07,27.66479]
[1641050695138,32.18375463,173.13,173.07,30.66479]
[1641050695340,32.18375463,173.13,173.07,27.66479]
[1641050695540,12.31247343,173.09,173.07,30.66479]
[1641050695740,12.31247343,173.09,173.07,27.66479]
[1641050695941,12.31247343,173.09,173.07,3.0]
[1641050696142,31.6861,173.12,173.08,0.65674095]
[1641050696143,10.74393587,173.11,173.08,0.65674095]
[1641050697543,10.74393587,173.11,173.07,3.0]
[1641050698042,10.74393587,173.11,173.08,0.65674095]
[1641050699644,10.74393587,173.11,173.07,0.65674095]
[1641050699844,10.74393587,173.11,173.07,3.65674095]
[1641050700044,27.66479,173.1,173.07,3.65674095]
[1641050700246,27.66479,173.1,173.08,0.65674095]
[1641050700448,10.74393587,173.11,173.08,0.65674095]
[1641050704149,10.74393587,173.11,173.07,0.65674095]
[1641050704449,10.74393587,173.11,173.06,0.65674095]
[1641050704848,10.74393587,173.11,173.06,3.65674095]
[1641050705049,10.74393587,173.11,173.07,3.0]
[1641050705248,10.74393587,173.11,173.08,0.65674095]
[1641050707451,10.74393587,173.11,173.06,0.65674095]
[1641050707653,10.74393587,173.11,173.06,4.75922133]
[1641050708253,4.10406036,173.07,173.06,4.75922133]
[1641050708453,4.10406036,173.07,173.06,4.10248038]
[1641050708954,4.10406036,173.07,173.06,7.10248038]
[1641050709155,10.74643194,173.11,173.06,7.10248038]
[1641050709355,10.74643194,173.11,173.06,4.10248038]
[1641050709555,10.74643194,173.11,173.1,3.0]
[1641050709759,2.18449048,173.11,173.1,3.0]
[1641050710657,10.74525573,173.14,173.1,3.0]
[1641050711360,10.74525573,173.14,173.09,4.10248038]
[1641050711559,12.31064784,173.13,173.09,4.10248038]
[1641050712162,12.31064784,173.13,173.09,6.02202087]
[1641050712360,12.31064784,173.13,173.12,3.0]
[1641050712560,12.31064784,173.13,173.09,6.02202087]
[1641050713660,12.31064784,173.13,173.12,3.0]
[1641050714061,12.31064784,173.13,173.09,6.02202087]
[1641050714560,12.31064784,173.13,173.12,3.0]
[1641050715164,10.74525573,173.15,173.12,3.0]
[1641050715760,12.31059555,173.13,173.12,3.0]
[1641050717064,12.31059555,173.13,173.09,4.10248038]
[1641050718064,12.31059555,173.12,173.08,33.95408038]
[1641050718664,10.74525573,173.15,173.08,33.95408038]
[1641050719367,12.31120889,173.12,173.08,33.95408038]
[1641050719567,12.31120889,173.12,173.08,4.10248038]
[1641050719764,12.31120889,173.12,173.11,3.0]
[1641050721467,10.74525573,173.15,173.11,3.0]
[1641050721666,12.31025518,173.13,173.11,3.0]